[Event "Live Chess"]
[Site "Chess.com"]
[Date "2011.01.29"]
[Round "-"]
[White "hipposcottimus"]
[Black "CPSheppard"]
[Result "1-0"]
[CurrentPosition "8/8/8/pppB1N2/4R3/k2R2P1/P4K1P/8 b - -"]
[Timezone "UTC"]
[ECO "B06"]
[ECOUrl "https://www.chess.com/openings/Modern-Defense-with-1-e4-2.Nf3"]
[UTCDate "2011.01.29"]
[UTCTime "20:09:38"]
[WhiteElo "1585"]
[BlackElo "1581"]
[TimeControl "60"]
[Termination "hipposcottimus won on time"]
[StartTime "20:09:38"]
[EndDate "2011.01.29"]
[EndTime "20:11:51"]
[Link "https://www.chess.com/game/live/92714062"]

1. e4 {[%clk 0:01:00]} 1... g6 {[%clk 0:01:00]} 2. Nf3 {[%clk 0:00:59.5]} 2... Bg7 {[%clk 0:00:59.6]} 3. e5 {[%clk 0:00:59.3]} 3... e6 {[%clk 0:00:59.1]} 4. d4 {[%clk 0:00:58.8]} 4... d6 {[%clk 0:00:58.7]} 5. c4 {[%clk 0:00:58.1]} 5... Ne7 {[%clk 0:00:56.7]} 6. Bd2 {[%clk 0:00:55.8]} 6... h6 {[%clk 0:00:56]} 7. Nc3 {[%clk 0:00:54.3]} 7... g5 {[%clk 0:00:55.4]} 8. Bd3 {[%clk 0:00:53.1]} 8... g4 {[%clk 0:00:55.3]} 9. Nh4 {[%clk 0:00:52.3]} 9... Nf5 {[%clk 0:00:52.9]} 10. g3 {[%clk 0:00:51.9]} 10... Nd7 {[%clk 0:00:47.3]} 11. Ng2 {[%clk 0:00:48.9]} 11... Bxe5 {[%clk 0:00:45.3]} 12. O-O {[%clk 0:00:48.5]} 12... Bf6 {[%clk 0:00:43.5]} 13. Ne4 {[%clk 0:00:46.4]} 13... Bxd4 {[%clk 0:00:42.2]} 14. Be3 {[%clk 0:00:43.5]} 14... Bxb2 {[%clk 0:00:40.5]} 15. Rb1 {[%clk 0:00:42]} 15... Bd4 {[%clk 0:00:39.4]} 16. Bxd4 {[%clk 0:00:40.8]} 16... Nxd4 {[%clk 0:00:38.7]} 17. f3 {[%clk 0:00:37.4]} 17... Nc5 {[%clk 0:00:37.6]} 18. Bc2 {[%clk 0:00:35.7]} 18... Nxe4 {[%clk 0:00:36.2]} 19. Qxd4 {[%clk 0:00:34.2]} 19... d5 {[%clk 0:00:33.6]} 20. Qxh8+ {[%clk 0:00:32.4]} 20... Ke7 {[%clk 0:00:32.1]} 21. Qxd8+ {[%clk 0:00:32.1]} 21... Kxd8 {[%clk 0:00:31.1]} 22. fxe4 {[%clk 0:00:31.8]} 22... d4 {[%clk 0:00:29.3]} 23. Rxf7 {[%clk 0:00:29.9]} 23... Bd7 {[%clk 0:00:26.4]} 24. Rf8+ {[%clk 0:00:28.3]} 24... Be8 {[%clk 0:00:24]} 25. Nf4 {[%clk 0:00:27.9]} 25... c6 {[%clk 0:00:22]} 26. Rh8 {[%clk 0:00:25.8]} 26... Kc7 {[%clk 0:00:21.1]} 27. Nxe6+ {[%clk 0:00:24.9]} 27... Kd6 {[%clk 0:00:19.8]} 28. Nxd4 {[%clk 0:00:23.8]} 28... Kc5 {[%clk 0:00:18.6]} 29. Nf5 {[%clk 0:00:23]} 29... Kxc4 {[%clk 0:00:17.6]} 30. Bb3+ {[%clk 0:00:22.5]} 30... Kb4 {[%clk 0:00:16.5]} 31. Rc1 {[%clk 0:00:21.8]} 31... Ka3 {[%clk 0:00:16.4]} 32. Rc3 {[%clk 0:00:20.7]} 32... Kb2 {[%clk 0:00:13.1]} 33. Rc2+ {[%clk 0:00:19.3]} 33... Ka3 {[%clk 0:00:11.6]} 34. Rxh6 {[%clk 0:00:18.8]} 34... Rd8 {[%clk 0:00:09.3]} 35. Kf2 {[%clk 0:00:14.5]} 35... c5 {[%clk 0:00:04.1]} 36. Rh4 {[%clk 0:00:13.7]} 36... Bc6 {[%clk 0:00:03.2]} 37. Rxg4 {[%clk 0:00:12.5]} 37... Bxe4 {[%clk 0:00:03]} 38. Rxe4 {[%clk 0:00:11.5]} 38... Rd2+ {[%clk 0:00:02.2]} 39. Rxd2 {[%clk 0:00:09.7]} 39... b5 {[%clk 0:00:01.5]} 40. Bd5 {[%clk 0:00:07.4]} 40... a5 {[%clk 0:00:01.4]} 41. Rd3+ {[%clk 0:00:06.7]} 1-0

[Event "Live Chess"]
[Site "Chess.com"]
[Date "2011.01.29"]
[Round "-"]
[White "CPSheppard"]
[Black "hipposcottimus"]
[Result "1-0"]
[CurrentPosition "3N4/ppp4p/5kpr/2b5/8/1P6/PP2b1K1/8 b - -"]
[Timezone "UTC"]
[ECO "C23"]
[ECOUrl "https://www.chess.com/openings/Bishops-Opening-2...Nc6"]
[UTCDate "2011.01.29"]
[UTCTime "20:07:04"]
[WhiteElo "1589"]
[BlackElo "1577"]
[TimeControl "60"]
[Termination "CPSheppard won on time"]
[StartTime "20:07:04"]
[EndDate "2011.01.29"]
[EndTime "20:09:21"]
[Link "https://www.chess.com/game/live/92713283"]

1. e4 {[%clk 0:01:00]} 1... e5 {[%clk 0:01:00]} 2. Bc4 {[%clk 0:00:58.9]} 2... Nc6 {[%clk 0:00:59.3]} 3. Bxf7+ {[%clk 0:00:58.8]} 3... Kxf7 {[%clk 0:00:57.6]} 4. Qh5+ {[%clk 0:00:58.7]} 4... g6 {[%clk 0:00:56.4]} 5. Qf3+ {[%clk 0:00:58.6]} 5... Nf6 {[%clk 0:00:56.1]} 6. Qb3+ {[%clk 0:00:57.8]} 6... d5 {[%clk 0:00:55]} 7. Nf3 {[%clk 0:00:56.7]} 7... Na5 {[%clk 0:00:52.9]} 8. Nxe5+ {[%clk 0:00:53.5]} 8... Kg7 {[%clk 0:00:52.6]} 9. exd5 {[%clk 0:00:50.5]} 9... Nxb3 {[%clk 0:00:51.1]} 10. cxb3 {[%clk 0:00:50.4]} 10... Nxd5 {[%clk 0:00:49.6]} 11. O-O {[%clk 0:00:48.7]} 11... Qe7 {[%clk 0:00:49.2]} 12. d4 {[%clk 0:00:47.9]} 12... Qf6 {[%clk 0:00:45.9]} 13. Nd2 {[%clk 0:00:45.5]} 13... Bd6 {[%clk 0:00:45.5]} 14. Ndf3 {[%clk 0:00:43.7]} 14... Rf8 {[%clk 0:00:43.1]} 15. Bg5 {[%clk 0:00:41.9]} 15... Qe6 {[%clk 0:00:38.6]} 16. Bf4 {[%clk 0:00:39.5]} 16... Nxf4 {[%clk 0:00:37.7]} 17. Ng5 {[%clk 0:00:38.6]} 17... Qf5 {[%clk 0:00:36.2]} 18. g4 {[%clk 0:00:35.6]} 18... Qxg4+ {[%clk 0:00:34.4]} 19. Nxg4 {[%clk 0:00:33.9]} 19... Nh5 {[%clk 0:00:31.8]} 20. Ne5 {[%clk 0:00:32.1]} 20... Bh3 {[%clk 0:00:30.2]} 21. Rfe1 {[%clk 0:00:30.4]} 21... Rae8 {[%clk 0:00:29.7]} 22. f4 {[%clk 0:00:28]} 22... Nxf4 {[%clk 0:00:28.6]} 23. Rf1 {[%clk 0:00:26]} 23... Ne2+ {[%clk 0:00:27.7]} 24. Kh1 {[%clk 0:00:22.1]} 24... Rxf1+ {[%clk 0:00:25.7]} 25. Rxf1 {[%clk 0:00:19.9]} 25... Bxf1 {[%clk 0:00:25.4]} 26. Nef3 {[%clk 0:00:17.8]} 26... Re3 {[%clk 0:00:20.8]} 27. d5 {[%clk 0:00:16.3]} 27... Nf4 {[%clk 0:00:18.8]} 28. Ne6+ {[%clk 0:00:14.7]} 28... Nxe6 {[%clk 0:00:16.6]} 29. dxe6 {[%clk 0:00:13.2]} 29... Rxe6 {[%clk 0:00:16.3]} 30. Ng5 {[%clk 0:00:11.8]} 30... Rf6 {[%clk 0:00:14.8]} 31. Ne4 {[%clk 0:00:10]} 31... Rf3 {[%clk 0:00:09.7]} 32. Ng5 {[%clk 0:00:07.5]} 32... Rf2 {[%clk 0:00:08.3]} 33. Ne6+ {[%clk 0:00:06.5]} 33... Kf6 {[%clk 0:00:06.6]} 34. Nd8 {[%clk 0:00:06.2]} 34... Rxh2+ {[%clk 0:00:05.5]} 35. Kg1 {[%clk 0:00:04.4]} 35... Be2 {[%clk 0:00:04]} 36. Nc6 {[%clk 0:00:00.9]} 36... Rh6 {[%clk 0:00:01.9]} 37. Nd8 {[%clk 0:00:00.8]} 37... Bc5+ {[%clk 0:00:01.1]} 38. Kg2 {[%clk 0:00:00.7]} 1-0

[Event "Live Chess"]
[Site "Chess.com"]
[Date "2011.01.29"]
[Round "-"]
[White "hipposcottimus"]
[Black "CPSheppard"]
[Result "0-1"]
[CurrentPosition "2k5/p7/1B2b2p/1P1NK1p1/3n2P1/5P2/3r2rP/8 w - -"]
[Timezone "UTC"]
[ECO "B06"]
[ECOUrl "https://www.chess.com/openings/Modern-Defense-with-1-e4-2.d4-Bg7"]
[UTCDate "2011.01.29"]
[UTCTime "20:04:25"]
[WhiteElo "1585"]
[BlackElo "1581"]
[TimeControl "60"]
[Termination "CPSheppard won on time"]
[StartTime "20:04:25"]
[EndDate "2011.01.29"]
[EndTime "20:06:44"]
[Link "https://www.chess.com/game/live/92712535"]

1. e4 {[%clk 0:01:00]} 1... g6 {[%clk 0:01:00]} 2. d4 {[%clk 0:00:58.4]} 2... Bg7 {[%clk 0:00:57]} 3. e5 {[%clk 0:00:58.1]} 3... e6 {[%clk 0:00:56.4]} 4. c4 {[%clk 0:00:57.4]} 4... d6 {[%clk 0:00:54.4]} 5. b4 {[%clk 0:00:56.1]} 5... dxe5 {[%clk 0:00:53.4]} 6. dxe5 {[%clk 0:00:54.9]} 6... Qxd1+ {[%clk 0:00:52.4]} 7. Kxd1 {[%clk 0:00:54.7]} 7... Bxe5 {[%clk 0:00:51.5]} 8. Be2 {[%clk 0:00:54.4]} 8... Bxa1 {[%clk 0:00:50.4]} 9. Nf3 {[%clk 0:00:53]} 9... Nc6 {[%clk 0:00:49.4]} 10. Bd2 {[%clk 0:00:50.8]} 10... Nd4 {[%clk 0:00:46.9]} 11. Ne5 {[%clk 0:00:44.5]} 11... Nxe2 {[%clk 0:00:44.7]} 12. Kxe2 {[%clk 0:00:44]} 12... f6 {[%clk 0:00:43.8]} 13. Nd3 {[%clk 0:00:42]} 13... Bd4 {[%clk 0:00:41.2]} 14. Nc3 {[%clk 0:00:41.7]} 14... Bxc3 {[%clk 0:00:39.6]} 15. Bxc3 {[%clk 0:00:40.5]} 15... e5 {[%clk 0:00:39.5]} 16. Nc5 {[%clk 0:00:38.8]} 16... b6 {[%clk 0:00:37.9]} 17. Ne4 {[%clk 0:00:37.6]} 17... Bf5 {[%clk 0:00:37.3]} 18. Ng3 {[%clk 0:00:35.3]} 18... Bg4+ {[%clk 0:00:35.2]} 19. f3 {[%clk 0:00:34.3]} 19... Be6 {[%clk 0:00:34.1]} 20. Ne4 {[%clk 0:00:33.1]} 20... Bxc4+ {[%clk 0:00:32.6]} 21. Kf2 {[%clk 0:00:32.5]} 21... Rd8 {[%clk 0:00:31.1]} 22. Re1 {[%clk 0:00:31.7]} 22... Rd3 {[%clk 0:00:30]} 23. Bb2 {[%clk 0:00:28.2]} 23... Bxa2 {[%clk 0:00:27.7]} 24. b5 {[%clk 0:00:26.7]} 24... Ne7 {[%clk 0:00:26.8]} 25. Nxf6+ {[%clk 0:00:25.1]} 25... Kf7 {[%clk 0:00:25.2]} 26. Ne4 {[%clk 0:00:23.4]} 26... Nf5 {[%clk 0:00:23.1]} 27. Bc1 {[%clk 0:00:21.8]} 27... Nd4 {[%clk 0:00:21.1]} 28. Ng5+ {[%clk 0:00:20]} 28... Kg7 {[%clk 0:00:18.9]} 29. Rxe5 {[%clk 0:00:18.8]} 29... h6 {[%clk 0:00:17]} 30. Re7+ {[%clk 0:00:16.7]} 30... Kf6 {[%clk 0:00:15.9]} 31. Rf7+ {[%clk 0:00:15.3]} 31... Ke5 {[%clk 0:00:12.8]} 32. Re7+ {[%clk 0:00:14.2]} 32... Kf5 {[%clk 0:00:11.8]} 33. g4+ {[%clk 0:00:13]} 33... Kf6 {[%clk 0:00:08.5]} 34. Rf7+ {[%clk 0:00:12.2]} 34... Bxf7 {[%clk 0:00:07.4]} 35. Ne4+ {[%clk 0:00:09.7]} 35... Ke6 {[%clk 0:00:06.1]} 36. Bf4 {[%clk 0:00:08.6]} 36... Kd7 {[%clk 0:00:05.7]} 37. Bxc7 {[%clk 0:00:07.7]} 37... Kc8 {[%clk 0:00:05.6]} 38. Nf6 {[%clk 0:00:07.4]} 38... Re8 {[%clk 0:00:05.5]} 39. Nd5 {[%clk 0:00:06.5]} 39... Re2+ {[%clk 0:00:03.5]} 40. Kg3 {[%clk 0:00:06.2]} 40... Rdd2 {[%clk 0:00:03.4]} 41. Bxb6 {[%clk 0:00:05.3]} 41... Rg2+ {[%clk 0:00:01.9]} 42. Kf4 {[%clk 0:00:04.5]} 42... g5+ {[%clk 0:00:01.8]} 43. Ke5 {[%clk 0:00:01.4]} 43... Be6 {[%clk 0:00:01.7]} 0-1

[Event "Live Chess"]
[Site "Chess.com"]
[Date "2011.01.29"]
[Round "-"]
[White "john149"]
[Black "hipposcottimus"]
[Result "0-1"]
[CurrentPosition "6k1/ppp3p1/5p2/3P4/6K1/2P3P1/Pr6/8 b - -"]
[Timezone "UTC"]
[ECO "C24"]
[ECOUrl "https://www.chess.com/openings/Bishops-Opening-Berlin-Defense-3.d3-Nc6"]
[UTCDate "2011.01.29"]
[UTCTime "20:01:52"]
[WhiteElo "1257"]
[BlackElo "1593"]
[TimeControl "60"]
[Termination "hipposcottimus won by resignation"]
[StartTime "20:01:52"]
[EndDate "2011.01.29"]
[EndTime "20:03:53"]
[Link "https://www.chess.com/game/live/92711826"]

1. e4 {[%clk 0:01:00]} 1... e5 {[%clk 0:01:00]} 2. Bc4 {[%clk 0:00:59.4]} 2... Nf6 {[%clk 0:00:58.6]} 3. d3 {[%clk 0:00:58.6]} 3... Nc6 {[%clk 0:00:57.8]} 4. c3 {[%clk 0:00:57.7]} 4... d5 {[%clk 0:00:56.4]} 5. exd5 {[%clk 0:00:56.1]} 5... Nxd5 {[%clk 0:00:56.1]} 6. Bxd5 {[%clk 0:00:54.8]} 6... Qxd5 {[%clk 0:00:55.8]} 7. f3 {[%clk 0:00:53.6]} 7... Bf5 {[%clk 0:00:51.9]} 8. Ne2 {[%clk 0:00:50.8]} 8... e4 {[%clk 0:00:51.1]} 9. d4 {[%clk 0:00:49]} 9... exf3 {[%clk 0:00:49.3]} 10. O-O {[%clk 0:00:46.9]} 10... fxg2 {[%clk 0:00:45.7]} 11. Rf2 {[%clk 0:00:44.2]} 11... Be4 {[%clk 0:00:44]} 12. Ng3 {[%clk 0:00:41.8]} 12... Bd6 {[%clk 0:00:34.1]} 13. Qe1 {[%clk 0:00:40.5]} 13... Bxg3 {[%clk 0:00:32.1]} 14. Qe2 {[%clk 0:00:35.6]} 14... Bxf2+ {[%clk 0:00:28.2]} 15. Qxf2 {[%clk 0:00:34.2]} 15... O-O {[%clk 0:00:27]} 16. Be3 {[%clk 0:00:31.9]} 16... Ne7 {[%clk 0:00:24]} 17. Nd2 {[%clk 0:00:31]} 17... Nf5 {[%clk 0:00:20.3]} 18. Nxe4 {[%clk 0:00:30.1]} 18... Qxe4 {[%clk 0:00:19.3]} 19. Re1 {[%clk 0:00:26.4]} 19... Nxe3 {[%clk 0:00:16.5]} 20. Rxe3 {[%clk 0:00:23.6]} 20... Qb1+ {[%clk 0:00:15.7]} 21. Kxg2 {[%clk 0:00:22]} 21... Rae8 {[%clk 0:00:12.2]} 22. Rf3 {[%clk 0:00:20.3]} 22... Qg6+ {[%clk 0:00:11.5]} 23. Kh3 {[%clk 0:00:17.7]} 23... f6 {[%clk 0:00:11.1]} 24. Qg3 {[%clk 0:00:16.4]} 24... Re4 {[%clk 0:00:10.3]} 25. Qxg6 {[%clk 0:00:15]} 25... hxg6 {[%clk 0:00:10]} 26. Rg3 {[%clk 0:00:13.8]} 26... Rfe8 {[%clk 0:00:07.8]} 27. Rxg6 {[%clk 0:00:12.6]} 27... Re3+ {[%clk 0:00:07]} 28. Rg3 {[%clk 0:00:11.6]} 28... Rxg3+ {[%clk 0:00:06.2]} 29. hxg3 {[%clk 0:00:11]} 29... Re2 {[%clk 0:00:05.9]} 30. Kg4 {[%clk 0:00:10]} 30... Rxb2 {[%clk 0:00:05.6]} 31. d5 {[%clk 0:00:09.1]} 0-1

[Event "Live Chess"]
[Site "Chess.com"]
[Date "2011.01.29"]
[Round "-"]
[White "hipposcottimus"]
[Black "john149"]
[Result "1-0"]
[CurrentPosition "8/5Rp1/2k4p/2p5/8/8/PPP3PP/5K2 b - -"]
[Timezone "UTC"]
[ECO "C41"]
[ECOUrl "https://www.chess.com/openings/Philidor-Defense-3.Bc4"]
[UTCDate "2011.01.29"]
[UTCTime "20:00:07"]
[WhiteElo "1591"]
[BlackElo "1259"]
[TimeControl "60"]
[Termination "hipposcottimus won by resignation"]
[StartTime "20:00:07"]
[EndDate "2011.01.29"]
[EndTime "20:01:28"]
[Link "https://www.chess.com/game/live/92711352"]

1. e4 {[%clk 0:01:00]} 1... e5 {[%clk 0:01:00]} 2. Nf3 {[%clk 0:00:59.7]} 2... d6 {[%clk 0:00:58.4]} 3. Bc4 {[%clk 0:00:59.3]} 3... Nc6 {[%clk 0:00:54.4]} 4. d4 {[%clk 0:00:58.8]} 4... h6 {[%clk 0:00:52.8]} 5. Bb5 {[%clk 0:00:57.9]} 5... a6 {[%clk 0:00:51.3]} 6. d5 {[%clk 0:00:56.8]} 6... Bd7 {[%clk 0:00:46.5]} 7. dxc6 {[%clk 0:00:56.2]} 7... Bxc6 {[%clk 0:00:45.8]} 8. Bd3 {[%clk 0:00:54.9]} 8... Bb5 {[%clk 0:00:44.3]} 9. Nc3 {[%clk 0:00:53.3]} 9... Bxd3 {[%clk 0:00:42.7]} 10. Qxd3 {[%clk 0:00:53.1]} 10... b5 {[%clk 0:00:41]} 11. O-O {[%clk 0:00:52.8]} 11... c5 {[%clk 0:00:39.6]} 12. Nxb5 {[%clk 0:00:51.6]} 12... axb5 {[%clk 0:00:37.5]} 13. Qxb5+ {[%clk 0:00:51.3]} 13... Qd7 {[%clk 0:00:36]} 14. Qxd7+ {[%clk 0:00:51]} 14... Kxd7 {[%clk 0:00:35]} 15. Ne1 {[%clk 0:00:49.8]} 15... Rb8 {[%clk 0:00:34]} 16. f4 {[%clk 0:00:49.5]} 16... Nf6 {[%clk 0:00:33.1]} 17. fxe5 {[%clk 0:00:48.3]} 17... Nxe4 {[%clk 0:00:32.2]} 18. exd6 {[%clk 0:00:47.9]} 18... Kxd6 {[%clk 0:00:31.5]} 19. Bf4+ {[%clk 0:00:45.3]} 19... Kd5 {[%clk 0:00:29.1]} 20. Bxb8 {[%clk 0:00:44.9]} 20... Bd6 {[%clk 0:00:26.3]} 21. Bxd6 {[%clk 0:00:42]} 21... Kxd6 {[%clk 0:00:25.1]} 22. Rxf7 {[%clk 0:00:41.5]} 22... Nd2 {[%clk 0:00:21.1]} 23. Rd1 {[%clk 0:00:39.3]} 23... Kc6 {[%clk 0:00:19.9]} 24. Rxd2 {[%clk 0:00:38.5]} 24... Re8 {[%clk 0:00:18.3]} 25. Rdf2 {[%clk 0:00:37.9]} 25... Rxe1+ {[%clk 0:00:16.5]} 26. Rf1 {[%clk 0:00:37.7]} 26... Rxf1+ {[%clk 0:00:15.4]} 27. Kxf1 {[%clk 0:00:36.9]} 1-0

[Event "Live Chess"]
[Site "Chess.com"]
[Date "2011.01.29"]
[Round "-"]
[White "hipposcottimus"]
[Black "TimArnett"]
[Result "1-0"]
[CurrentPosition "1nk4r/pQ5p/5p2/2PB4/5P2/6P1/PPP5/R4RK1 b - -"]
[Timezone "UTC"]
[ECO "B01"]
[ECOUrl "https://www.chess.com/openings/Scandinavian-Defense-Mieses-Kotrc-Variation-3.Nc3-Qe5-4.Be2"]
[UTCDate "2011.01.29"]
[UTCTime "19:57:29"]
[WhiteElo "1589"]
[BlackElo "1502"]
[TimeControl "60"]
[Termination "hipposcottimus won on time"]
[StartTime "19:57:29"]
[EndDate "2011.01.29"]
[EndTime "19:59:36"]
[Link "https://www.chess.com/game/live/92710577"]

1. e4 {[%clk 0:01:00]} 1... d5 {[%clk 0:01:00]} 2. exd5 {[%clk 0:00:57.8]} 2... Qxd5 {[%clk 0:00:59.6]} 3. Nc3 {[%clk 0:00:57.5]} 3... Qe5+ {[%clk 0:00:59.2]} 4. Be2 {[%clk 0:00:57.2]} 4... e6 {[%clk 0:00:58]} 5. d4 {[%clk 0:00:55]} 5... Qa5 {[%clk 0:00:57.6]} 6. Bd2 {[%clk 0:00:53.4]} 6... Bb4 {[%clk 0:00:57]} 7. Nf3 {[%clk 0:00:48.8]} 7... c5 {[%clk 0:00:55.4]} 8. dxc5 {[%clk 0:00:47.4]} 8... Qd8 {[%clk 0:00:51.9]} 9. O-O {[%clk 0:00:47.1]} 9... Bd7 {[%clk 0:00:49.6]} 10. Ne4 {[%clk 0:00:45]} 10... Bxd2 {[%clk 0:00:47.8]} 11. Nd6+ {[%clk 0:00:41.5]} 11... Ke7 {[%clk 0:00:36.6]} 12. Qxd2 {[%clk 0:00:41.2]} 12... Bc6 {[%clk 0:00:34.3]} 13. Ne5 {[%clk 0:00:37.6]} 13... Qxd6 {[%clk 0:00:32.3]} 14. Qxd6+ {[%clk 0:00:34.2]} 14... Kf6 {[%clk 0:00:30.1]} 15. Ng4+ {[%clk 0:00:30.6]} 15... Kg5 {[%clk 0:00:27.8]} 16. h4+ {[%clk 0:00:24.6]} 16... Kxh4 {[%clk 0:00:24.6]} 17. g3+ {[%clk 0:00:23.3]} 17... Kg5 {[%clk 0:00:21.9]} 18. f4+ {[%clk 0:00:20.7]} 18... Kg6 {[%clk 0:00:19.5]} 19. Bd3+ {[%clk 0:00:17.3]} 19... f5 {[%clk 0:00:17.7]} 20. Qxe6+ {[%clk 0:00:15.6]} 20... Nf6 {[%clk 0:00:15.2]} 21. Qxf5+ {[%clk 0:00:14.9]} 21... Kf7 {[%clk 0:00:13.7]} 22. Bc4+ {[%clk 0:00:13.7]} 22... Bd5 {[%clk 0:00:10.9]} 23. Bxd5+ {[%clk 0:00:12.4]} 23... Kf8 {[%clk 0:00:10]} 24. Qc8+ {[%clk 0:00:10.5]} 24... Ke7 {[%clk 0:00:07.7]} 25. Qxb7+ {[%clk 0:00:08.6]} 25... Kd8 {[%clk 0:00:03.9]} 26. Nxf6 {[%clk 0:00:07.4]} 26... gxf6 {[%clk 0:00:02.2]} 27. Qxa8 {[%clk 0:00:06.9]} 27... Kc8 {[%clk 0:00:00.8]} 28. Qb7+ {[%clk 0:00:06]} 1-0

[Event "Live Chess"]
[Site "Chess.com"]
[Date "2011.01.29"]
[Round "-"]
[White "amar12345"]
[Black "hipposcottimus"]
[Result "0-1"]
[CurrentPosition "8/p1P3k1/2q5/5p2/1P3P2/PK5p/8/8 w - -"]
[Timezone "UTC"]
[ECO "C31"]
[ECOUrl "https://www.chess.com/openings/Kings-Gambit-Declined-Falkbeer-Blackburne-Attack"]
[UTCDate "2011.01.29"]
[UTCTime "19:54:33"]
[WhiteElo "1557"]
[BlackElo "1583"]
[TimeControl "60"]
[Termination "hipposcottimus won on time"]
[StartTime "19:54:33"]
[EndDate "2011.01.29"]
[EndTime "19:56:48"]
[Link "https://www.chess.com/game/live/92709708"]

1. e4 {[%clk 0:01:00]} 1... e5 {[%clk 0:01:00]} 2. f4 {[%clk 0:00:59.3]} 2... d5 {[%clk 0:00:58.7]} 3. Nf3 {[%clk 0:00:58.5]} 3... dxe4 {[%clk 0:00:58.4]} 4. Nxe5 {[%clk 0:00:57.6]} 4... f6 {[%clk 0:00:56.8]} 5. Nc4 {[%clk 0:00:56.6]} 5... f5 {[%clk 0:00:56.5]} 6. Nc3 {[%clk 0:00:55.2]} 6... b5 {[%clk 0:00:56.1]} 7. Ne5 {[%clk 0:00:53.1]} 7... Nf6 {[%clk 0:00:50.6]} 8. Bxb5+ {[%clk 0:00:50.8]} 8... c6 {[%clk 0:00:48.9]} 9. Nxc6 {[%clk 0:00:47.7]} 9... Nxc6 {[%clk 0:00:48.6]} 10. Bxc6+ {[%clk 0:00:46.7]} 10... Bd7 {[%clk 0:00:46.4]} 11. Bxa8 {[%clk 0:00:45.6]} 11... Bc5 {[%clk 0:00:43.1]} 12. d3 {[%clk 0:00:43.6]} 12... Qb6 {[%clk 0:00:40.2]} 13. Qe2 {[%clk 0:00:42.2]} 13... O-O {[%clk 0:00:37.5]} 14. Nd5 {[%clk 0:00:41]} 14... Nxd5 {[%clk 0:00:35.8]} 15. Bxd5+ {[%clk 0:00:39.8]} 15... Kh8 {[%clk 0:00:33.5]} 16. Bd2 {[%clk 0:00:37]} 16... exd3 {[%clk 0:00:32.2]} 17. Qxd3 {[%clk 0:00:31.8]} 17... Bf2+ {[%clk 0:00:31.8]} 18. Kd1 {[%clk 0:00:30.2]} 18... Re8 {[%clk 0:00:31]} 19. Kc1 {[%clk 0:00:28.9]} 19... Bc6 {[%clk 0:00:29.3]} 20. Bxc6 {[%clk 0:00:26.7]} 20... Qxc6 {[%clk 0:00:28.3]} 21. Rf1 {[%clk 0:00:25.4]} 21... Qxg2 {[%clk 0:00:27.1]} 22. Rd1 {[%clk 0:00:22.4]} 22... Qxh2 {[%clk 0:00:24.4]} 23. Qd7 {[%clk 0:00:20.8]} 23... Rf8 {[%clk 0:00:22.8]} 24. Bc3 {[%clk 0:00:19.8]} 24... Qh6 {[%clk 0:00:19.7]} 25. b3 {[%clk 0:00:16.4]} 25... Bh4 {[%clk 0:00:18]} 26. Kb2 {[%clk 0:00:15.2]} 26... Rd8 {[%clk 0:00:17.7]} 27. Qe7 {[%clk 0:00:13.2]} 27... Bxe7 {[%clk 0:00:15]} 28. Rxd8+ {[%clk 0:00:11.4]} 28... Bxd8 {[%clk 0:00:14.8]} 29. Rd1 {[%clk 0:00:10.6]} 29... Qb6 {[%clk 0:00:14.4]} 30. Rxd8+ {[%clk 0:00:08.6]} 30... Qxd8 {[%clk 0:00:13.3]} 31. Bxg7+ {[%clk 0:00:07.3]} 31... Kxg7 {[%clk 0:00:11.7]} 32. a3 {[%clk 0:00:06.4]} 32... Qf6+ {[%clk 0:00:11.4]} 33. Ka2 {[%clk 0:00:04.9]} 33... Qa6 {[%clk 0:00:11]} 34. b4 {[%clk 0:00:03.9]} 34... Qe2 {[%clk 0:00:10.5]} 35. Kb3 {[%clk 0:00:03.3]} 35... h5 {[%clk 0:00:08.8]} 36. c4 {[%clk 0:00:02.4]} 36... h4 {[%clk 0:00:08.4]} 37. c5 {[%clk 0:00:01.7]} 37... h3 {[%clk 0:00:08.1]} 38. c6 {[%clk 0:00:01.3]} 38... Qe4 {[%clk 0:00:05.1]} 39. c7 {[%clk 0:00:00.8]} 39... Qc6 {[%clk 0:00:03.7]} 0-1

[Event "Live Chess"]
[Site "Chess.com"]
[Date "2011.01.29"]
[Round "-"]
[White "hipposcottimus"]
[Black "amar12345"]
[Result "0-1"]
[CurrentPosition "r4k2/pb3p2/4p1pp/2p1nn2/2P2P2/2N5/PPQ1B1qP/3R1RK1 w - -"]
[Timezone "UTC"]
[ECO "B00"]
[ECOUrl "https://www.chess.com/openings/Owens-Defense-2.d4"]
[UTCDate "2011.01.29"]
[UTCTime "19:53:03"]
[WhiteElo "1575"]
[BlackElo "1565"]
[TimeControl "60"]
[Termination "amar12345 won by checkmate"]
[StartTime "19:53:03"]
[EndDate "2011.01.29"]
[EndTime "19:54:12"]
[Link "https://www.chess.com/game/live/92709359"]

1. e4 {[%clk 0:01:00]} 1... b6 {[%clk 0:01:00]} 2. d4 {[%clk 0:00:59.2]} 2... g6 {[%clk 0:00:59.1]} 3. c4 {[%clk 0:00:57.5]} 3... Bg7 {[%clk 0:00:58.7]} 4. e5 {[%clk 0:00:56.8]} 4... Bb7 {[%clk 0:00:58]} 5. Qe2 {[%clk 0:00:52.5]} 5... e6 {[%clk 0:00:57.5]} 6. Nf3 {[%clk 0:00:51.6]} 6... c6 {[%clk 0:00:56.3]} 7. Bg5 {[%clk 0:00:49.9]} 7... Ne7 {[%clk 0:00:54.5]} 8. Qd3 {[%clk 0:00:45.3]} 8... h6 {[%clk 0:00:53.6]} 9. Bf6 {[%clk 0:00:43.8]} 9... Bxf6 {[%clk 0:00:52.3]} 10. exf6 {[%clk 0:00:43.5]} 10... Nf5 {[%clk 0:00:51.4]} 11. Be2 {[%clk 0:00:40]} 11... Qxf6 {[%clk 0:00:50.8]} 12. O-O {[%clk 0:00:39]} 12... O-O {[%clk 0:00:49]} 13. Ne5 {[%clk 0:00:38.6]} 13... c5 {[%clk 0:00:46.5]} 14. Nxd7 {[%clk 0:00:37.3]} 14... Qe7 {[%clk 0:00:44.3]} 15. Nxf8 {[%clk 0:00:36]} 15... Kxf8 {[%clk 0:00:43.4]} 16. dxc5 {[%clk 0:00:35.2]} 16... bxc5 {[%clk 0:00:41.7]} 17. Nc3 {[%clk 0:00:32.7]} 17... Nd7 {[%clk 0:00:40.2]} 18. Qc2 {[%clk 0:00:30]} 18... Ne5 {[%clk 0:00:38.7]} 19. Rad1 {[%clk 0:00:28.8]} 19... Qg5 {[%clk 0:00:37.2]} 20. f4 {[%clk 0:00:26.1]} 20... Qxg2# {[%clk 0:00:35.5]} 0-1